[Event "EYTCC Open U18 2022"]
[Site "Thessaloniki"]
[Date "2022.07.16"]
[Round "5.19"]
[White "Antonica, Dragos-Andrei"]
[Black "Koelle, Tobias"]
[Result "1-0"]
[ECO "A01"]
[WhiteElo "2355"]
[BlackElo "2436"]
[Annotator "ChessBase"]
[PlyCount "89"]
[EventDate "2022.07.12"]
[EventType "team-tourn"]
[EventCountry "GRE"]
[SourceTitle "playchess.com"]
[Source "ChessBase"]
[SourceQuality "1"]
[WhiteTeam "Romania"]
[BlackTeam "Germany"]
[WhiteTeamCountry "ROU"]
[BlackTeamCountry "GER"]
[TimeControl "40/5400+30:1800+30"]

1. b3 {[%emt 0:00:03]} e5 {[%emt 0:00:31]} 2. Bb2 {[%emt 0:00:04]} Nc6 {[%emt 0:00:14]} 3. c4 {[%emt 0:00:09]} Nge7 {[%emt 0:02:52]} 4. e3 {[%emt 0:00:39]} g6 {[%emt 0:06:17]} 5. Nf3 {[%emt 0:02:22]} Bg7 {[%emt 0:00:23]} 6. d4 {[%emt 0:03:09]} e4 {[%emt 0:04:38]} 7. Ng5 {[%emt 0:02:39]} f5 {[%emt 0:03:59]} 8. h4 {[%emt 0:01:07]} Ng8 {[%emt 0:16:48]} 9. Nc3 {[%emt 0:05:24]} Nf6 {[%emt 0:17:04]} 10. Qd2 {[%emt 0:17:17]} d6 {[%emt 0:01:48]} 11. Be2 {[%emt 0:01:27]} O-O {[%emt 0:02:38]} 12. O-O-O {[%emt 0:05:06]} Nb4 {[%emt 0:06:18]} 13. Nh3 {[%emt 0:06:30]} c6 {[%emt 0:02:10]} 14. a3 {[%emt 0:04:16]} Na6 {[%emt 0:00:56]} 15. h5 {[%emt 0:00:30]} d5 {[%emt 0:02:09]} 16. hxg6 {[%emt 0:02:25]} hxg6 {[%emt 0:00:35]} 17. Nf4 {[%emt 0:00:58]} Kf7 {[%emt 0:04:16]} 18. f3 {[%emt 0:03:33]} g5 {[%emt 0:08:04]} 19. Nh5 {[%emt 0:06:06]} Nxh5 {[%emt 0:00:18]} 20. Rxh5 {[%emt 0:00:02]} Nc7 {[%emt 0:03:04]} 21. Rdh1 {[%emt 0:08:31]} Qe7 {[%emt 0:05:50]} 22. g4 {[%emt 0:08:01]} fxg4 {[%emt 0:03:51]} 23. fxe4 {[%emt 0:00:45]} dxe4 {[%emt 0:00:01]} 24. Bd1 {[%emt 0:05:15]} Bf5 {[%emt 0:01:00]} 25. Qg2 {[%emt 0:02:20]} Rh8 {[%emt 0:02:53]} 26. Rxh8 {[%emt 0:02:02]} Rxh8 {[%emt 0:00:02]} 27. Rf1 {[%emt 0:00:16]} Kg6 {[%emt 0:01:09]} 28. Ne2 {[%emt 0:02:33]} Rf8 {[%emt 0:01:39]} 29. Bc2 {[%emt 0:01:45]} Rf6 {[%emt 0:02:58]} 30. Ng3 {[%emt 0:02:51]} Bd7 {[%emt 0:00:09]} 31. Rh1 {[%emt 0:03:28]} Kf7 {[%emt 0:00:12]} 32. Nh5 {[%emt 0:01:26]} Rf3 {[%emt 0:00:34]} 33. Nxg7 {[%emt 0:00:17]} Kxg7 {[%emt 0:00:01]} 34. d5+ {[%emt 0:00:44]} Kg6 {[%emt 0:00:17]} 35. d6 {[%emt 0:01:45]} Qxd6 {[%emt 0:00:01]} 36. Bxe4+ {[%emt 0:00:38]} Bf5 {[%emt 0:00:00]} 37. Qxg4 {[%emt 0:01:35]} Bxe4 {[%emt 0:00:16]} 38. Qxe4+ {[%emt 0:00:32]} Rf5 {[%emt 0:00:01]} 39. Qg4 {[%emt 0:00:18]} Rf8 {[%emt 0:03:09]} 40. Qh5+ {[%emt 0:00:00]} Kf5 {[%emt 0:00:00]} 41. Rf1+ {[%emt 0:02:56]} Ke4 {[%emt 0:01:17]} 42. Qg4+ {[%emt 0:01:03]} Kxe3 {[%emt 0:00:05]} 43. Re1+ {[%emt 0:00:13]} Kf2 {[%emt 0:00:05]} 44. Re2+ {[%emt 0:00:05]} Kf1 {[%emt 0:00:02]} 45. Qg2# {[%emt 0:00:05]} 1-0

[Event "EYTCC Open U18 2022"]
[Site "Thessaloniki"]
[Date "2022.07.16"]
[Round "5.20"]
[White "Krastev, Alexander"]
[Black "Cnejev, Vladimir-Alexandru"]
[Result "1-0"]
[ECO "C67"]
[WhiteElo "2435"]
[BlackElo "2172"]
[Annotator "ChessBase"]
[PlyCount "127"]
[EventDate "2022.07.12"]
[EventType "team-tourn"]
[EventCountry "GRE"]
[SourceTitle "playchess.com"]
[Source "ChessBase"]
[SourceQuality "1"]
[WhiteTeam "Germany"]
[BlackTeam "Romania"]
[WhiteTeamCountry "GER"]
[BlackTeamCountry "ROU"]
[TimeControl "40/5400+30:1800+30"]

1. e4 {[%emt 0:00:02]} e5 {[%emt 0:00:07]} 2. Nf3 {[%emt 0:00:04]} Nc6 {[%emt 0:00:05]} 3. Bb5 {[%emt 0:00:06]} Nf6 {[%emt 0:00:25]} 4. O-O {[%emt 0:00:11]} Nxe4 {[%emt 0:00:03]} 5. Re1 {[%emt 0:00:20]} Nd6 {[%emt 0:00:05]} 6. a4 {[%emt 0:00:08]} Be7 {[%emt 0:00:58]} 7. Nc3 {[%emt 0:00:23]} a6 {[%emt 0:01:45]} 8. Bf1 {[%emt 0:00:11]} Nf5 {[%emt 0:02:39]} 9. Nxe5 {[%emt 0:04:18]} Nxe5 {[%emt 0:00:06]} 10. Rxe5 {[%emt 0:00:05]} d6 {[%emt 0:00:05]} 11. Re1 {[%emt 0:00:22]} d5 {[%emt 0:05:18]} 12. Bd3 {[%emt 0:13:31]} c6 {[%emt 0:12:23]} 13. Qg4 {[%emt 0:12:28]} g6 {[%emt 0:02:26]} 14. Bxf5 {[%emt 0:03:20]} Bxf5 {[%emt 0:00:09]} 15. Qb4 {[%emt 0:00:04]} Qd7 {[%emt 0:14:52]} 16. d3 {[%emt 0:02:51]} Be6 {[%emt 0:03:57]} 17. Qd4 {[%emt 0:01:23]} f6 {[%emt 0:04:09]} 18. b4 {[%emt 0:21:16]} a5 {[%emt 0:07:25]} 19. bxa5 {[%emt 0:01:48]} c5 {[%emt 0:03:06]} 20. Qh4 {[%emt 0:00:44]} O-O {[%emt 0:05:26]} 21. Bd2 {[%emt 0:01:23]} Bd8 {[%emt 0:05:26]} 22. Re2 {[%emt 0:08:52]} Bxa5 {[%emt 0:01:36]} 23. Rae1 {[%emt 0:00:12]} Rae8 {[%emt 0:00:12]} 24. h3 {[%emt 0:04:45]} Qc6 {[%emt 0:13:51]} 25. Ne4 {[%emt 0:08:10]} Bxd2 {[%emt 0:05:12]} 26. Nxd2 {[%emt 0:00:01]} Bf7 {[%emt 0:01:24]} 27. a5 {[%emt 0:02:49]} Rxe2 {[%emt 0:00:51]} 28. Rxe2 {[%emt 0:00:02]} Re8 {[%emt 0:00:08]} 29. Rxe8+ {[%emt 0:00:32]} Bxe8 {[%emt 0:01:30]} 30. Qf4 {[%emt 0:00:47]} Kg7 {[%emt 0:02:20]} 31. Qb8 {[%emt 0:01:36]} Bf7 {[%emt 0:00:50]} 32. Qa7 {[%emt 0:05:05]} c4 {[%emt 0:03:04]} 33. Nf1 {[%emt 0:04:07]} cxd3 {[%emt 0:01:30]} 34. cxd3 {[%emt 0:00:01]} Qc3 {[%emt 0:00:53]} 35. d4 {[%emt 0:00:37]} Qe1 {[%emt 0:01:14]} 36. h4 {[%emt 0:01:16]} h6 {[%emt 0:01:52]} 37. Qb6 {[%emt 0:00:44]} h5 {[%emt 0:00:47]} 38. Qc5 {[%emt 0:01:22]} Kg8 {[%emt 0:00:36]} 39. Qb5 {[%emt 0:03:16]} Kg7 {[%emt 0:00:13]} 40. Qb6 {[%emt 0:00:00]} Qc3 {[%emt 0:00:00]} 41. g3 {[%emt 0:14:54]} Qe1 {[%emt 0:02:07]} 42. Qc7 {[%emt 0:01:16]} Kg8 {[%emt 0:05:25]} 43. Qd8+ {[%emt 0:00:23]} Kg7 {[%emt 0:00:10]} 44. Qb6 {[%emt 0:00:04]} f5 {[%emt 0:11:21]} 45. Qc7 {[%emt 0:06:52]} Kf6 {[%emt 0:02:29]} 46. Qd6+ {[%emt 0:01:50]} Be6 {[%emt 0:01:10]} 47. Qf8+ {[%emt 0:06:51]} Bf7 {[%emt 0:00:01]} 48. Qh8+ {[%emt 0:00:09]} Ke6 {[%emt 0:01:58]} 49. Qd8 {[%emt 0:00:53]} Qb4 {[%emt 0:02:41]} 50. Nh2 {[%emt 0:00:58]} Qd6 {[%emt 0:06:13]} 51. Qc8+ {[%emt 0:00:26]} Kf6 {[%emt 0:01:48]} 52. Qxb7 {[%emt 0:00:13]} f4 {[%emt 0:00:46]} 53. Qb6 {[%emt 0:01:59]} Ke7 {[%emt 0:00:01]} 54. Qxd6+ {[%emt 0:00:44]} Kxd6 {[%emt 0:00:01]} 55. Nf3 {[%emt 0:00:10]} fxg3 {[%emt 0:00:10]} 56. fxg3 {[%emt 0:00:08]} Be8 {[%emt 0:00:44]} 57. Ne5 {[%emt 0:00:07]} Kc7 {[%emt 0:00:05]} 58. Nd3 {[%emt 0:01:23]} Kc6 {[%emt 0:00:21]} 59. Nc5 {[%emt 0:00:24]} Kb5 {[%emt 0:00:24]} 60. a6 {[%emt 0:00:10]} Kc4 {[%emt 0:01:16]} 61. Ne6 {[%emt 0:00:29]} Bc6 {[%emt 0:00:21]} 62. Kf2 {[%emt 0:00:18]} Kb5 {[%emt 0:00:26]} 63. Nc5 {[%emt 0:00:17]} Kb4 {[%emt 0:00:34]} 64. Kf3 {[%emt 0:00:46]} 1-0

[Event "EYTCC Open U18 2022"]
[Site "Thessaloniki"]
[Date "2022.07.16"]
[Round "5.21"]
[White "Subelj, Jan"]
[Black "Herega, Nejc"]
[Result "1-0"]
[ECO "B52"]
[WhiteElo "2498"]
[BlackElo "2160"]
[Annotator "ChessBase"]
[PlyCount "67"]
[EventDate "2022.07.12"]
[EventType "team-tourn"]
[EventCountry "GRE"]
[SourceTitle "playchess.com"]
[Source "ChessBase"]
[SourceQuality "1"]
[WhiteTeam "Slovenia"]
[BlackTeam "Slovenia"]
[WhiteTeamCountry "SLO"]
[BlackTeamCountry "SLO"]
[TimeControl "40/5400+30:1800+30"]

1. e4 {[%emt 0:00:33]} c5 {[%emt 0:00:14]} 2. Nf3 {[%emt 0:00:48]} d6 {[%emt 0:00:25]} 3. Bb5+ {[%emt 0:00:51]} Bd7 {[%emt 0:00:09]} 4. c4 {[%emt 0:01:04]} Nf6 {[%emt 0:02:05]} 5. Nc3 {[%emt 0:00:37]} g6 {[%emt 0:02:28]} 6. O-O {[%emt 0:03:14]} Bg7 {[%emt 0:05:36]} 7. d4 {[%emt 0:03:44]} cxd4 {[%emt 0:01:12]} 8. Nxd4 {[%emt 0:00:08]} Nc6 {[%emt 0:02:18]} 9. Bxc6 {[%emt 0:02:55]} bxc6 {[%emt 0:07:37]} 10. Nf3 {[%emt 0:01:19]} Qa5 {[%emt 0:10:44]} 11. Bd2 {[%emt 0:07:37]} O-O {[%emt 0:07:36]} 12. h3 {[%emt 0:00:35]} Qc7 {[%emt 0:07:00]} 13. Bf4 {[%emt 0:01:51]} e5 {[%emt 0:02:19]} 14. Be3 {[%emt 0:00:15]} Be6 {[%emt 0:03:02]} 15. b3 {[%emt 0:01:33]} Rfd8 {[%emt 0:06:44]} 16. Rc1 {[%emt 0:00:54]} Qe7 {[%emt 0:03:52]} 17. Qe2 {[%emt 0:04:21]} Bc8 {[%emt 0:06:05]} 18. Rfd1 {[%emt 0:06:58]} Bb7 {[%emt 0:00:46]} 19. Bg5 {[%emt 0:00:37]} h6 {[%emt 0:02:54]} 20. Bxf6 {[%emt 0:00:44]} Bxf6 {[%emt 0:01:07]} 21. Rd3 {[%emt 0:00:21]} Rd7 {[%emt 0:02:35]} 22. Rcd1 {[%emt 0:02:39]} Rad8 {[%emt 0:01:13]} 23. Qe3 {[%emt 0:06:20]} Kg7 {[%emt 0:01:33]} 24. Qxa7 {[%emt 0:00:43]} d5 {[%emt 0:01:32]} 25. Qb6 {[%emt 0:00:23]} dxc4 {[%emt 0:08:16]} 26. Rxd7 {[%emt 0:00:39]} Rxd7 {[%emt 0:00:09]} 27. Rxd7 {[%emt 0:00:11]} Qxd7 {[%emt 0:00:04]} 28. bxc4 {[%emt 0:00:09]} Bc8 {[%emt 0:01:30]} 29. Kh2 {[%emt 0:05:48]} g5 {[%emt 0:02:05]} 30. Ne2 {[%emt 0:00:48]} Qd3 {[%emt 0:04:21]} 31. Ng3 {[%emt 0:00:21]} Qxc4 {[%emt 0:01:18]} 32. Nh5+ {[%emt 0:00:06]} Kg6 {[%emt 0:00:32]} 33. Nxf6 {[%emt 0:00:06]} Kxf6 {[%emt 0:00:07]} 34. Qd8+ {[%emt 0:00:04]} 1-0

[Event "EYTCC Open U18 2022"]
[Site "Thessaloniki"]
[Date "2022.07.16"]
[Round "5.22"]
[White "Olenik Campa, Rudi"]
[Black "Marn, Jan"]
[Result "0-1"]
[ECO "C61"]
[WhiteElo "2203"]
[BlackElo "2282"]
[Annotator "ChessBase"]
[PlyCount "100"]
[EventDate "2022.07.12"]
[EventType "team-tourn"]
[EventCountry "GRE"]
[SourceTitle "playchess.com"]
[Source "ChessBase"]
[SourceQuality "1"]
[WhiteTeam "Slovenia"]
[BlackTeam "Slovenia"]
[WhiteTeamCountry "SLO"]
[BlackTeamCountry "SLO"]
[TimeControl "40/5400+30:1800+30"]

1. e4 {[%emt 0:00:17]} e5 {[%emt 0:00:08]} 2. Nf3 {[%emt 0:00:19]} Nc6 {[%emt 0:00:07]} 3. Bb5 {[%emt 0:00:10]} Nd4 {[%emt 0:00:08]} 4. Nxd4 {[%emt 0:00:11]} exd4 {[%emt 0:00:04]} 5. O-O {[%emt 0:00:15]} Bc5 {[%emt 0:00:05]} 6. Qg4 {[%emt 0:00:03]} Qf6 {[%emt 0:00:44]} 7. d3 {[%emt 0:09:27]} c6 {[%emt 0:00:14]} 8. Qh5 {[%emt 0:01:56]} d6 {[%emt 0:07:50]} 9. Bc4 {[%emt 0:03:34]} Qg6 {[%emt 0:03:08]} 10. Qxg6 {[%emt 0:02:45]} hxg6 {[%emt 0:00:32]} 11. c3 {[%emt 0:02:48]} Nf6 {[%emt 0:10:01]} 12. h3 {[%emt 0:00:47]} d5 {[%emt 0:12:20]} 13. exd5 {[%emt 0:02:32]} cxd5 {[%emt 0:00:21]} 14. Bb5+ {[%emt 0:01:43]} Kd8 {[%emt 0:02:48]} 15. cxd4 {[%emt 0:04:53]} Bxd4 {[%emt 0:02:27]} 16. Nd2 {[%emt 0:00:46]} a6 {[%emt 0:12:43]} 17. Ba4 {[%emt 0:00:03]} b5 {[%emt 0:22:06]} 18. Bb3 {[%emt 0:01:00]} Ra7 {[%emt 0:00:54]} 19. Nf3 {[%emt 0:01:37]} Bb6 {[%emt 0:01:18]} 20. Bg5 {[%emt 0:08:44]} Be6 {[%emt 0:02:32]} 21. a4 {[%emt 0:02:43]} Kc8 {[%emt 0:06:02]} 22. Rfc1+ {[%emt 0:03:31]} Kb7 {[%emt 0:01:06]} 23. axb5 {[%emt 0:13:05]} axb5 {[%emt 0:00:07]} 24. Rxa7+ {[%emt 0:00:15]} Bxa7 {[%emt 0:01:30]} 25. Be3 {[%emt 0:00:34]} d4 {[%emt 0:01:45]} 26. Bxe6 {[%emt 0:00:33]} dxe3 {[%emt 0:00:03]} 27. Bxf7 {[%emt 0:03:21]} exf2+ {[%emt 0:00:21]} 28. Kf1 {[%emt 0:01:50]} Be3 {[%emt 0:01:35]} 29. Rc2 {[%emt 0:00:08]} Nh5 {[%emt 0:04:39]} 30. Rxf2 {[%emt 0:00:04]} Bxf2 {[%emt 0:00:05]} 31. Kxf2 {[%emt 0:00:05]} Nf4 {[%emt 0:00:12]} 32. d4 {[%emt 0:01:19]} Nd3+ {[%emt 0:01:43]} 33. Ke3 {[%emt 0:00:08]} Nxb2 {[%emt 0:00:05]} 34. Bxg6 {[%emt 0:00:31]} Nc4+ {[%emt 0:01:08]} 35. Kd3 {[%emt 0:00:15]} Nd6 {[%emt 0:00:06]} 36. Ne5 {[%emt 0:00:54]} Ra8 {[%emt 0:01:23]} 37. Be4+ {[%emt 0:00:46]} Nxe4 {[%emt 0:00:11]} 38. Kxe4 {[%emt 0:00:03]} Ra2 {[%emt 0:01:03]} 39. g4 {[%emt 0:00:50]} Rh2 {[%emt 0:02:26]} 40. Kd5 {[%emt 0:00:00]} Rxh3 {[%emt 0:00:00]} 41. Kc5 {[%emt 0:02:13]} Ka6 {[%emt 0:13:24]} 42. d5 {[%emt 0:05:28]} Rc3+ {[%emt 0:00:13]} 43. Kd4 Rc1 44. d6 {[%emt 0:03:19]} Kb6 {[%emt 0:06:01]} 45. Kd5 {[%emt 0:01:04]} Rd1+ {[%emt 0:00:35]} 46. Ke6 {[%emt 0:00:13]} b4 {[%emt 0:01:11]} 47. Ke7 {[%emt 0:05:18]} Re1 {[%emt 0:01:38]} 48. d7 {[%emt 0:01:11]} Rxe5+ {[%emt 0:00:06]} 49. Kd6 {[%emt 0:00:08]} Rd5+ {[%emt 0:00:04]} 50. Kxd5 {[%emt 0:00:11]} Kc7 {[%emt 0:00:03]} 0-1

[Event "EYTCC Open U18 2022"]
[Site "Thessaloniki"]
[Date "2022.07.16"]
[Round "5.23"]
[White "Nareks, Matic"]
[Black "Gregoric, Andraz"]
[Result "1-0"]
[ECO "C50"]
[WhiteElo "2221"]
[BlackElo "2199"]
[Annotator "ChessBase"]
[PlyCount "111"]
[EventDate "2022.07.12"]
[EventType "team-tourn"]
[EventCountry "GRE"]
[SourceTitle "playchess.com"]
[Source "ChessBase"]
[SourceQuality "1"]
[WhiteTeam "Slovenia"]
[BlackTeam "Slovenia"]
[WhiteTeamCountry "SLO"]
[BlackTeamCountry "SLO"]
[TimeControl "40/5400+30:1800+30"]

1. e4 {[%emt 0:00:07]} e5 {[%emt 0:00:03]} 2. Bc4 {[%emt 0:00:05]} Nc6 {[%emt 0:00:27]} 3. Nf3 {[%emt 0:00:17]} Bc5 {[%emt 0:00:24]} 4. O-O {[%emt 0:00:16]} Nf6 {[%emt 0:00:20]} 5. d3 {[%emt 0:00:25]} d6 {[%emt 0:00:12]} 6. c3 {[%emt 0:00:08]} a5 {[%emt 0:00:04]} 7. Nbd2 {[%emt 0:00:09]} O-O {[%emt 0:00:06]} 8. h3 {[%emt 0:00:46]} h6 {[%emt 0:01:53]} 9. Re1 {[%emt 0:01:07]} Ba7 {[%emt 0:01:53]} 10. a4 {[%emt 0:09:29]} Ne7 {[%emt 0:01:09]} 11. Nf1 {[%emt 0:00:42]} Be6 {[%emt 0:05:01]} 12. Bb3 {[%emt 0:09:35]} Ng6 {[%emt 0:07:55]} 13. Ng3 {[%emt 0:02:31]} Nh7 {[%emt 0:15:36]} 14. Bc2 {[%emt 0:22:03]} Ng5 {[%emt 0:06:34]} 15. Be3 {[%emt 0:11:34]} Qf6 {[%emt 0:03:32]} 16. Nxg5 {[%emt 0:00:47]} hxg5 {[%emt 0:00:20]} 17. Qd2 {[%emt 0:03:50]} Nf4 {[%emt 0:01:00]} 18. Bd1 {[%emt 0:01:25]} g6 {[%emt 0:00:44]} 19. Nf1 {[%emt 0:01:32]} Kg7 {[%emt 0:02:32]} 20. Nh2 {[%emt 0:05:00]} Rh8 {[%emt 0:03:20]} 21. Ng4 {[%emt 0:01:43]} Qe7 {[%emt 0:01:43]} 22. d4 {[%emt 0:01:20]} f5 {[%emt 0:09:30]} 23. exf5 {[%emt 0:00:26]} gxf5 {[%emt 0:00:26]} 24. Bxf4 {[%emt 0:01:51]} gxf4 {[%emt 0:03:14]} 25. Nxe5 {[%emt 0:02:53]} dxe5 {[%emt 0:01:41]} 26. Rxe5 {[%emt 0:00:06]} Qf6 {[%emt 0:04:55]} 27. Bf3 {[%emt 0:03:23]} c6 {[%emt 0:06:39]} 28. Rxa5 {[%emt 0:01:11]} Bb6 {[%emt 0:02:04]} 29. Rxa8 {[%emt 0:00:53]} Rxa8 {[%emt 0:00:01]} 30. Qxf4 {[%emt 0:01:18]} Rc8 {[%emt 0:03:34]} 31. b4 {[%emt 0:03:09]} Bc7 {[%emt 0:00:05]} 32. Qe3 {[%emt 0:00:10]} Bc4 {[%emt 0:06:53]} 33. Re1 {[%emt 0:02:13]} Bd6 {[%emt 0:00:49]} 34. Be2 {[%emt 0:05:25]} Bf7 {[%emt 0:03:09]} 35. Qd2 {[%emt 0:00:09]} Rg8 {[%emt 0:01:46]} 36. b5 {[%emt 0:03:54]} Kf8 {[%emt 0:02:52]} 37. Bf3 {[%emt 0:00:39]} Bd5 {[%emt 0:01:06]} 38. Bxd5 {[%emt 0:00:33]} cxd5 {[%emt 0:00:01]} 39. Qe3 {[%emt 0:00:34]} f4 {[%emt 0:04:10]} 40. Qf3 {[%emt 0:00:00]} Qf5 {[%emt 0:00:00]} 41. a5 {[%emt 0:06:30]} Rg7 {[%emt 0:01:24]} 42. a6 {[%emt 0:02:16]} bxa6 {[%emt 0:00:03]} 43. bxa6 {[%emt 0:00:05]} Ra7 {[%emt 0:02:36]} 44. Ra1 {[%emt 0:01:15]} Bb8 {[%emt 0:02:14]} 45. Ra5 {[%emt 0:02:47]} Qb1+ {[%emt 0:01:11]} 46. Kh2 {[%emt 0:00:06]} Qe4 {[%emt 0:00:02]} 47. Rxd5 {[%emt 0:02:47]} Qxf3 {[%emt 0:00:05]} 48. gxf3 {[%emt 0:00:04]} Ke7 {[%emt 0:01:07]} 49. Ra5 {[%emt 0:02:19]} Ke6 {[%emt 0:00:04]} 50. c4 {[%emt 0:01:25]} Rc7 {[%emt 0:00:31]} 51. Re5+ {[%emt 0:04:45]} Kd6 {[%emt 0:03:07]} 52. c5+ {[%emt 0:01:26]} Kc6 {[%emt 0:01:00]} 53. Re6+ {[%emt 0:00:08]} Kd5 {[%emt 0:00:01]} 54. Rd6+ {[%emt 0:00:08]} Kc4 {[%emt 0:00:03]} 55. Rd8 {[%emt 0:01:13]} Ba7 {[%emt 0:00:09]} 56. h4 {[%emt 0:00:29]} 1-0

[Event "EYTCC Open U18 2022"]
[Site "Thessaloniki"]
[Date "2022.07.16"]
[Round "5.24"]
[White "Skrbec, Leon"]
[Black "Lavrencic, Matic"]
[Result "1/2-1/2"]
[ECO "B23"]
[WhiteElo "2103"]
[BlackElo "2151"]
[Annotator "ChessBase"]
[PlyCount "98"]
[EventDate "2022.07.12"]
[EventType "team-tourn"]
[EventCountry "GRE"]
[SourceTitle "playchess.com"]
[Source "ChessBase"]
[SourceQuality "1"]
[WhiteTeam "Slovenia"]
[BlackTeam "Slovenia"]
[WhiteTeamCountry "SLO"]
[BlackTeamCountry "SLO"]
[TimeControl "40/5400+30:1800+30"]

1. e4 {[%emt 0:00:04]} c5 {[%emt 0:00:06]} 2. Nc3 {[%emt 0:00:11]} d6 {[%emt 0:01:36]} 3. d4 {[%emt 0:00:09]} cxd4 {[%emt 0:00:09]} 4. Qxd4 {[%emt 0:00:04]} Nc6 {[%emt 0:00:03]} 5. Qd2 {[%emt 0:00:05]} Nf6 {[%emt 0:03:14]} 6. b3 {[%emt 0:00:30]} e6 {[%emt 0:01:17]} 7. Bb2 {[%emt 0:00:09]} Be7 {[%emt 0:00:19]} 8. O-O-O {[%emt 0:00:41]} a6 {[%emt 0:00:42]} 9. f3 {[%emt 0:02:42]} O-O {[%emt 0:01:22]} 10. Kb1 {[%emt 0:00:33]} b5 {[%emt 0:02:13]} 11. g4 {[%emt 0:02:57]} Bb7 {[%emt 0:01:19]} 12. Bg2 {[%emt 0:01:31]} Qc7 {[%emt 0:01:02]} 13. g5 {[%emt 0:03:32]} Nd7 {[%emt 0:00:27]} 14. f4 {[%emt 0:00:39]} Nc5 {[%emt 0:02:29]} 15. h4 {[%emt 0:03:51]} Rfd8 {[%emt 0:05:22]} 16. Nh3 {[%emt 0:03:07]} Rac8 {[%emt 0:03:02]} 17. Nf2 {[%emt 0:11:43]} Bf8 {[%emt 0:01:47]} 18. Ng4 {[%emt 0:01:27]} b4 {[%emt 0:03:03]} 19. Ne2 {[%emt 0:00:08]} d5 {[%emt 0:00:14]} 20. exd5 {[%emt 0:01:12]} exd5 {[%emt 0:00:47]} 21. h5 {[%emt 0:03:55]} Ne4 {[%emt 0:00:30]} 22. Qd3 {[%emt 0:03:16]} Nc3+ {[%emt 0:04:40]} 23. Nxc3 {[%emt 0:02:07]} bxc3 {[%emt 0:00:09]} 24. Qxc3 {[%emt 0:00:41]} d4 {[%emt 0:00:45]} 25. Qg3 {[%emt 0:04:07]} Nb4 {[%emt 0:01:17]} 26. Bxb7 {[%emt 0:01:06]} Qxb7 {[%emt 0:01:36]} 27. Rh2 {[%emt 0:00:22]} Qe4 {[%emt 0:04:35]} 28. Re1 {[%emt 0:04:14]} Qf5 {[%emt 0:01:02]} 29. Re5 {[%emt 0:01:18]} Qd7 {[%emt 0:00:04]} 30. Rd2 {[%emt 0:05:47]} Nxc2 {[%emt 0:10:28]} 31. Rxc2 {[%emt 0:01:41]} Rxc2 {[%emt 0:00:01]} 32. Kxc2 {[%emt 0:00:02]} d3+ {[%emt 0:00:18]} 33. Kd1 {[%emt 0:00:19]} Qc6 {[%emt 0:00:12]} 34. Nh6+ {[%emt 0:02:21]} Kh8 {[%emt 0:00:13]} 35. Nxf7+ {[%emt 0:00:06]} Kg8 {[%emt 0:00:05]} 36. Nh6+ {[%emt 0:00:21]} Kh8 {[%emt 0:01:23]} 37. Qf2 {[%emt 0:16:41]} Qh1+ {[%emt 0:00:53]} 38. Re1 {[%emt 0:00:04]} Qxh5+ {[%emt 0:00:27]} 39. Kd2 {[%emt 0:00:03]} Bb4+ {[%emt 0:01:21]} 40. Bc3 {[%emt 0:00:00]} Bxc3+ {[%emt 0:00:00]} 41. Kxc3 {[%emt 0:00:06]} d2 {[%emt 0:07:24]} 42. Nf7+ {[%emt 0:00:05]} Qxf7 {[%emt 0:00:17]} 43. Rd1 {[%emt 0:00:03]} Qc7+ {[%emt 0:00:47]} 44. Kb2 {[%emt 0:00:07]} Qd6 {[%emt 0:00:13]} 45. Qe3 {[%emt 0:01:00]} a5 {[%emt 0:01:26]} 46. a3 {[%emt 0:03:51]} Qd5 {[%emt 0:00:52]} 47. f5 {[%emt 0:07:42]} Qd6 {[%emt 0:04:53]} 48. Qc3 {[%emt 0:00:43]} Qd5 {[%emt 0:04:17]} 49. Qe3 {[%emt 0:07:59]} Qd6 {[%emt 0:00:49]} 1/2-1/2

[Event "EYTCC Open U18 2022"]
[Site "Thessaloniki"]
[Date "2022.07.16"]
[Round "5.25"]
[White "Morgunov, Marc"]
[Black "Bilych, Olexiy"]
[Result "1/2-1/2"]
[ECO "C88"]
[WhiteElo "2376"]
[BlackElo "2365"]
[Annotator "ChessBase"]
[PlyCount "61"]
[EventDate "2022.07.12"]
[EventType "team-tourn"]
[EventCountry "GRE"]
[SourceTitle "playchess.com"]
[Source "ChessBase"]
[SourceQuality "1"]
[WhiteTeam "Austria"]
[BlackTeam "Ukraine"]
[WhiteTeamCountry "AUT"]
[BlackTeamCountry "UKR"]
[TimeControl "40/5400+30:1800+30"]

1. e4 {[%emt 0:00:42]} e5 {[%emt 0:00:05]} 2. Nf3 {[%emt 0:00:09]} Nc6 {[%emt 0:00:06]} 3. Bb5 {[%emt 0:00:28]} a6 {[%emt 0:00:06]} 4. Ba4 {[%emt 0:00:17]} Nf6 {[%emt 0:00:06]} 5. O-O {[%emt 0:00:24]} Be7 {[%emt 0:00:06]} 6. Re1 {[%emt 0:00:14]} b5 {[%emt 0:00:06]} 7. Bb3 {[%emt 0:00:04]} O-O {[%emt 0:00:06]} 8. a4 {[%emt 0:02:20]} Bb7 {[%emt 0:00:06]} 9. d3 {[%emt 0:02:08]} d6 {[%emt 0:00:07]} 10. Bd2 {[%emt 0:06:10]} Qd7 {[%emt 0:00:06]} 11. Nc3 {[%emt 0:03:57]} Nd8 {[%emt 0:04:55]} 12. axb5 {[%emt 0:09:28]} axb5 {[%emt 0:00:06]} 13. Rxa8 {[%emt 0:00:07]} Bxa8 {[%emt 0:00:04]} 14. d4 {[%emt 0:03:34]} Nc6 {[%emt 0:18:03]} 15. dxe5 {[%emt 0:14:21]} Nxe5 {[%emt 0:00:27]} 16. Nxe5 {[%emt 0:10:21]} dxe5 {[%emt 0:00:07]} 17. Bg5 {[%emt 0:00:16]} Qxd1 {[%emt 0:08:25]} 18. Rxd1 {[%emt 0:00:14]} b4 {[%emt 0:01:13]} 19. Bxf6 {[%emt 0:04:14]} Bxf6 {[%emt 0:00:04]} 20. Nd5 {[%emt 0:00:07]} Bxd5 {[%emt 0:00:06]} 21. Rxd5 {[%emt 0:02:52]} Rd8 {[%emt 0:00:23]} 22. Kf1 {[%emt 0:00:08]} Rxd5 {[%emt 0:00:16]} 23. Bxd5 {[%emt 0:00:04]} Bg5 {[%emt 0:00:23]} 24. Ke2 {[%emt 0:00:21]} Bc1 {[%emt 0:00:06]} 25. b3 {[%emt 0:00:05]} Bb2 {[%emt 0:00:04]} 26. Kd3 {[%emt 0:00:05]} c5 {[%emt 0:00:18]} 27. Kc4 {[%emt 0:00:21]} Bd4 {[%emt 0:00:06]} 28. f3 {[%emt 0:00:04]} g5 {[%emt 0:00:09]} 29. g4 {[%emt 0:00:16]} Kg7 {[%emt 0:00:04]} 30. h3 {[%emt 0:00:06]} f6 {[%emt 0:00:05]} 31. Kd3 {[%emt 0:00:07]} 1/2-1/2